[Event "Late-Titled-Tuesday-Blitz-February-27-2024"]
[Site "Chess.com"]
[Date "2024.02.27"]
[Round "5"]
[White "maurovargas01"]
[Black "IsaacWiebe"]
[Result "0-1"]
[WhiteElo "1846"]
[BlackElo "2368"]
[TimeControl "180+1"]
[EndTime "14:55:02 PST"]
[Termination "IsaacWiebe won by checkmate"]

1. e4 {[%clk 0:03:00.7]} 1... g6 {[%clk 0:02:59.5]} 2. Nc3 {[%clk 0:02:57.2]}
2... Bg7 {[%clk 0:02:59.1]} 3. f4 {[%clk 0:02:57.2]} 3... c6 {[%clk 0:02:53.9]}
4. Nf3 {[%clk 0:02:56.4]} 4... d5 {[%clk 0:02:53.7]} 5. e5 {[%clk 0:02:55.5]}
5... h5 {[%clk 0:02:52.9]} 6. g3 {[%clk 0:02:47.3]} 6... Nh6 {[%clk 0:02:52.6]}
7. Bg2 {[%clk 0:02:47.1]} 7... Bg4 {[%clk 0:02:47.9]} 8. O-O {[%clk 0:02:46.1]}
8... Bxf3 {[%clk 0:02:44.5]} 9. Bxf3 {[%clk 0:02:45.6]} 9... Nf5 {[%clk
0:02:44.3]} 10. d3 {[%clk 0:02:37.1]} 10... e6 {[%clk 0:02:36.6]} 11. Bg2 {[%clk
0:02:36.4]} 11... Qb6+ {[%clk 0:02:27.2]} 12. Kh1 {[%clk 0:02:33.6]} 12... h4
{[%clk 0:02:24.7]} 13. Na4 {[%clk 0:02:15.2]} 13... Qa5 {[%clk 0:02:21.4]} 14.
c3 {[%clk 0:02:14.2]} 14... hxg3 {[%clk 0:02:18.7]} 15. h3 {[%clk 0:02:09.1]}
15... Nd7 {[%clk 0:02:11.9]} 16. b4 {[%clk 0:02:05.3]} 16... Qd8 {[%clk
0:02:04.4]} 17. Nc5 {[%clk 0:02:00.7]} 17... Nxc5 {[%clk 0:01:27.5]} 18. bxc5
{[%clk 0:02:00.5]} 18... Qe7 {[%clk 0:01:24.8]} 19. d4 {[%clk 0:01:59.9]} 19...
O-O-O {[%clk 0:01:21.5]} 20. Rb1 {[%clk 0:01:59.5]} 20... Kb8 {[%clk 0:01:19.5]}
21. Qa4 {[%clk 0:01:51.8]} 21... Ka8 {[%clk 0:01:19.1]} 22. Bd2 {[%clk 0:01:44]}
22... Rh4 {[%clk 0:01:09.9]} 23. Kg1 {[%clk 0:01:43.2]} 23... g5 {[%clk
0:00:47.4]} 24. fxg5 {[%clk 0:01:40.4]} 24... Bxe5 {[%clk 0:00:46.5]} 25. dxe5
{[%clk 0:01:33.9]} 25... Rxa4 {[%clk 0:00:45.7]} 26. Rb2 {[%clk 0:01:12.9]}
26... Qxc5+ {[%clk 0:00:44.3]} 27. Kh1 {[%clk 0:01:11]} 27... Rh8 {[%clk
0:00:41.9]} 28. Rf4 {[%clk 0:01:06.8]} 28... Rxf4 {[%clk 0:00:40.9]} 29. Bxf4
{[%clk 0:01:06.6]} 29... Qxc3 {[%clk 0:00:40]} 30. Rb1 {[%clk 0:01:02.6]} 30...
Qc2 {[%clk 0:00:38.7]} 31. Rf1 {[%clk 0:01:01.9]} 31... Rxh3+ {[%clk 0:00:37.1]}
32. Kg1 {[%clk 0:00:58.5]} 32... Qc5+ {[%clk 0:00:36.1]} 33. Be3 {[%clk
0:00:55.7]} 33... Qxe3+ {[%clk 0:00:36]} 34. Rf2 {[%clk 0:00:52.8]} 34... Qxf2#
{[%clk 0:00:36.6]} 0-1

[Event "Late-Titled-Tuesday-Blitz-February-27-2024"]
[Site "Chess.com"]
[Date "2024.02.27"]
[Round "5"]
[White "FredddieCroderg"]
[Black "FuenfgegenWilly"]
[Result "0-1"]
[WhiteElo "2281"]
[BlackElo "2463"]
[TimeControl "180+1"]
[EndTime "14:55:14 PST"]
[Termination "FuenfgegenWilly won by resignation"]

1. e4 {[%clk 0:03:00.9]} 1... e5 {[%clk 0:02:46.9]} 2. Bc4 {[%clk 0:02:58.7]}
2... Nf6 {[%clk 0:02:46.6]} 3. Qf3 {[%clk 0:02:57.6]} 3... Nc6 {[%clk
0:02:39.3]} 4. c3 {[%clk 0:02:57.4]} 4... Bc5 {[%clk 0:02:30.9]} 5. h3 {[%clk
0:02:56.8]} 5... d6 {[%clk 0:02:27.8]} 6. d3 {[%clk 0:02:56.4]} 6... Be6 {[%clk
0:02:26.6]} 7. g4 {[%clk 0:02:48.9]} 7... d5 {[%clk 0:02:23]} 8. Bb3 {[%clk
0:02:47.7]} 8... h6 {[%clk 0:02:09.8]} 9. Ne2 {[%clk 0:02:45.7]} 9... Qd7 {[%clk
0:02:03.2]} 10. Ng3 {[%clk 0:02:39.9]} 10... dxe4 {[%clk 0:01:53.7]} 11. dxe4
{[%clk 0:02:32.8]} 11... O-O-O {[%clk 0:01:46.5]} 12. Nf5 {[%clk 0:02:29.5]}
12... Bxb3 {[%clk 0:01:38.7]} 13. axb3 {[%clk 0:02:27.6]} 13... Nxe4 {[%clk
0:01:38.5]} 14. Ne3 {[%clk 0:01:54.9]} 14... Ng5 {[%clk 0:01:33.7]} 15. Qg2
{[%clk 0:01:53]} 15... e4 {[%clk 0:01:33.8]} 16. Nd2 {[%clk 0:01:40.4]} 16...
Bxe3 {[%clk 0:01:21.8]} 17. fxe3 {[%clk 0:01:38.9]} 17... Qd3 {[%clk 0:01:14]}
18. Qe2 {[%clk 0:01:27.2]} 18... Qc2 {[%clk 0:01:04.5]} 19. b4 {[%clk
0:01:20.8]} 19... Ne5 {[%clk 0:00:59.3]} 20. O-O {[%clk 0:01:08.8]} 20... Nef3+
{[%clk 0:00:58.1]} 21. Kh1 {[%clk 0:00:41]} 21... Nxd2 {[%clk 0:00:57.2]} 22.
Rxa7 {[%clk 0:00:34.4]} 22... Kb8 {[%clk 0:00:57.1]} 23. Ra5 {[%clk 0:00:11.5]}
23... Ngf3 {[%clk 0:00:55]} 24. b5 {[%clk 0:00:09.8]} 24... Qd3 {[%clk
0:00:50.3]} 25. Qxd3 {[%clk 0:00:07.3]} 25... Rxd3 {[%clk 0:00:51.2]} 26. Rd1
{[%clk 0:00:06.1]} 26... Nb3 {[%clk 0:00:49.4]} 0-1

[Event "Late-Titled-Tuesday-Blitz-February-27-2024"]
[Site "Chess.com"]
[Date "2024.02.27"]
[Round "5"]
[White "AlexTruskavetsky"]
[Black "Bilan_Danila"]
[Result "1-0"]
[WhiteElo "2709"]
[BlackElo "2547"]
[TimeControl "180+1"]
[EndTime "14:55:17 PST"]
[Termination "AlexTruskavetsky won on time"]

1. d4 {[%clk 0:02:57.1]} 1... d5 {[%clk 0:02:59.7]} 2. c4 {[%clk 0:02:56.6]}
2... c6 {[%clk 0:02:59.7]} 3. Nf3 {[%clk 0:02:56.8]} 3... Nf6 {[%clk 0:02:59.8]}
4. e3 {[%clk 0:02:57.2]} 4... g6 {[%clk 0:02:58.5]} 5. Bd3 {[%clk 0:02:57.3]}
5... Bg7 {[%clk 0:02:58.6]} 6. O-O {[%clk 0:02:57.9]} 6... O-O {[%clk
0:02:58.9]} 7. b3 {[%clk 0:02:58.1]} 7... Ne4 {[%clk 0:02:58.6]} 8. Bb2 {[%clk
0:02:57.6]} 8... Bf5 {[%clk 0:02:38.4]} 9. Nc3 {[%clk 0:02:53.9]} 9... Nd7
{[%clk 0:02:34.5]} 10. cxd5 {[%clk 0:02:52.6]} 10... Nxc3 {[%clk 0:02:31.4]} 11.
Bxc3 {[%clk 0:02:53]} 11... cxd5 {[%clk 0:02:20.3]} 12. Ne1 {[%clk 0:02:42.3]}
12... Rc8 {[%clk 0:02:11.6]} 13. Rc1 {[%clk 0:02:42.5]} 13... Qb6 {[%clk
0:01:54.5]} 14. Qd2 {[%clk 0:02:37.6]} 14... Nf6 {[%clk 0:01:30.5]} 15. Bxf5
{[%clk 0:02:20.7]} 15... gxf5 {[%clk 0:01:31.4]} 16. f3 {[%clk 0:02:21.1]} 16...
Qe6 {[%clk 0:01:14.5]} 17. Nd3 {[%clk 0:02:19.6]} 17... Rc7 {[%clk 0:01:09]} 18.
Nc5 {[%clk 0:02:15.6]} 18... Qc8 {[%clk 0:00:59.6]} 19. Bb4 {[%clk 0:02:15.5]}
19... Re8 {[%clk 0:00:52.8]} 20. Nd3 {[%clk 0:02:14.2]} 20... e6 {[%clk
0:00:44.4]} 21. Bd6 {[%clk 0:02:10.4]} 21... Rxc1 {[%clk 0:00:33.9]} 22. Rxc1
{[%clk 0:02:10.1]} 22... Qd7 {[%clk 0:00:34.6]} 23. Be5 {[%clk 0:02:02.9]} 23...
Rc8 {[%clk 0:00:34.7]} 24. Nc5 {[%clk 0:02:02.6]} 24... Qb5 {[%clk 0:00:31.2]}
25. a4 {[%clk 0:02:00.3]} 25... Qc6 {[%clk 0:00:24.8]} 26. Kf2 {[%clk
0:01:57.2]} 26... Ne8 {[%clk 0:00:07.5]} 27. Bxg7 {[%clk 0:01:57.1]} 27... Kxg7
{[%clk 0:00:08.4]} 28. b4 {[%clk 0:01:47.3]} 28... b6 {[%clk 0:00:08]} 29. b5
{[%clk 0:01:47.9]} 29... Qa8 {[%clk 0:00:07.9]} 30. Nd3 {[%clk 0:01:46.2]} 30...
Nd6 {[%clk 0:00:06.4]} 31. e4 {[%clk 0:01:41.8]} 31... dxe4 {[%clk 0:00:02.9]}
32. Qg5+ {[%clk 0:01:41.7]} 32... Kf8 {[%clk 0:00:03]} 33. Ne5 {[%clk
0:01:37.2]} 33... Rxc1 {[%clk 0:00:01.8]} 34. Qxc1 {[%clk 0:01:37.4]} 34... Kg7
{[%clk 0:00:01.6]} 35. Qg5+ {[%clk 0:01:37.4]} 35... Kf8 {[%clk 0:00:02.3]} 36.
Qh6+ {[%clk 0:01:37.4]} 36... Ke7 {[%clk 0:00:02.8]} 37. Qxh7 {[%clk 0:01:33.7]}
37... Qd5 {[%clk 0:00:03.1]} 38. Qh4+ {[%clk 0:01:29.8]} 38... Ke8 {[%clk
0:00:01.3]} 39. Nc6 {[%clk 0:01:30.3]} 1-0

[Event "Late-Titled-Tuesday-Blitz-February-27-2024"]
[Site "Chess.com"]
[Date "2024.02.27"]
[Round "5"]
[White "Mikhail_Golubev"]
[Black "Boninknights"]
[Result "1-0"]
[WhiteElo "2642"]
[BlackElo "2396"]
[TimeControl "180+1"]
[EndTime "14:55:20 PST"]
[Termination "Mikhail_Golubev won by resignation"]

1. e4 {[%clk 0:03:00.9]} 1... e5 {[%clk 0:02:58.7]} 2. Nf3 {[%clk 0:03:00.7]}
2... Qe7 {[%clk 0:02:58.1]} 3. Bc4 {[%clk 0:02:54.8]} 3... g6 {[%clk 0:02:56.6]}
4. O-O {[%clk 0:02:51.3]} 4... Bg7 {[%clk 0:02:55.4]} 5. d4 {[%clk 0:02:45.9]}
5... d6 {[%clk 0:02:54.2]} 6. Nc3 {[%clk 0:02:41.7]} 6... c6 {[%clk 0:02:52.9]}
7. a4 {[%clk 0:02:34.1]} 7... a5 {[%clk 0:02:51.5]} 8. h3 {[%clk 0:02:31.5]}
8... Nf6 {[%clk 0:02:42.8]} 9. Re1 {[%clk 0:02:24.5]} 9... O-O {[%clk
0:02:40.5]} 10. Bg5 {[%clk 0:02:22.7]} 10... h6 {[%clk 0:02:38.6]} 11. Be3
{[%clk 0:02:13.3]} 11... Na6 {[%clk 0:02:33.3]} 12. Qd2 {[%clk 0:02:11.8]} 12...
Kh7 {[%clk 0:02:31.8]} 13. Rad1 {[%clk 0:02:04.7]} 13... Nb4 {[%clk 0:02:29]}
14. dxe5 {[%clk 0:01:46.1]} 14... dxe5 {[%clk 0:02:27.8]} 15. Bb6 {[%clk
0:01:46.1]} 15... Be6 {[%clk 0:02:22.8]} 16. Nxe5 {[%clk 0:01:40.6]} 16... Nh5
{[%clk 0:02:11.4]} 17. Bxe6 {[%clk 0:01:34.7]} 17... Bxe5 {[%clk 0:02:03.7]} 18.
Bb3 {[%clk 0:01:26.2]} 18... Nf4 {[%clk 0:02:01]} 19. Qd7 {[%clk 0:01:18.9]}
19... Qg5 {[%clk 0:01:53.3]} 20. g3 {[%clk 0:01:08.4]} 20... Ne6 {[%clk
0:01:43.3]} 21. Bxe6 {[%clk 0:01:05]} 21... Bxg3 {[%clk 0:01:36]} 22. Bg4 {[%clk
0:00:42.7]} 22... Be5 {[%clk 0:01:24.4]} 23. Be3 {[%clk 0:00:38]} 23... Qh4
{[%clk 0:01:18.6]} 24. Bc5 {[%clk 0:00:29.8]} 24... Rad8 {[%clk 0:01:11.2]} 25.
Qxb7 {[%clk 0:00:26.7]} 25... Nxc2 {[%clk 0:01:05.7]} 26. Rxd8 {[%clk
0:00:24.5]} 26... Rxd8 {[%clk 0:00:55.6]} 27. Qxf7+ {[%clk 0:00:23]} 27... Kh8
{[%clk 0:00:55.3]} 28. Rf1 {[%clk 0:00:22.5]} 28... h5 {[%clk 0:00:34.9]} 29.
Be7 {[%clk 0:00:22]} 1-0

[Event "Late-Titled-Tuesday-Blitz-February-27-2024"]
[Site "Chess.com"]
[Date "2024.02.27"]
[Round "5"]
[White "ural58"]
[Black "rhwr"]
[Result "0-1"]
[WhiteElo "2481"]
[BlackElo "2337"]
[TimeControl "180+1"]
[EndTime "14:55:20 PST"]
[Termination "rhwr won by resignation"]

1. e4 {[%clk 0:02:56.2]} 1... c5 {[%clk 0:02:59.3]} 2. b3 {[%clk 0:02:55.7]}
2... Nc6 {[%clk 0:02:58.1]} 3. Bb2 {[%clk 0:02:55.8]} 3... e5 {[%clk 0:02:57.9]}
4. f4 {[%clk 0:02:55.5]} 4... d6 {[%clk 0:02:51.5]} 5. Qf3 {[%clk 0:02:54.8]}
5... Nd4 {[%clk 0:02:49.8]} 6. Bxd4 {[%clk 0:02:50.1]} 6... exd4 {[%clk
0:02:46.6]} 7. c3 {[%clk 0:02:50.6]} 7... Nf6 {[%clk 0:02:36.5]} 8. Bb5+ {[%clk
0:02:41.1]} 8... Bd7 {[%clk 0:02:35.7]} 9. Bxd7+ {[%clk 0:02:41.1]} 9... Qxd7
{[%clk 0:02:35.6]} 10. cxd4 {[%clk 0:02:41.2]} 10... cxd4 {[%clk 0:02:35.5]} 11.
Ne2 {[%clk 0:02:41.7]} 11... Qc6 {[%clk 0:02:29]} 12. d3 {[%clk 0:02:32.8]}
12... Qb6 {[%clk 0:02:27.9]} 13. Nd2 {[%clk 0:02:24.6]} 13... Be7 {[%clk
0:02:16.4]} 14. Nc4 {[%clk 0:02:19]} 14... Qb4+ {[%clk 0:02:16]} 15. Kf2 {[%clk
0:02:18.5]} 15... O-O {[%clk 0:02:12]} 16. a3 {[%clk 0:01:53.9]} 16... Qxb3
{[%clk 0:02:03.1]} 17. Rhb1 {[%clk 0:01:53.3]} 17... Qa4 {[%clk 0:01:52.2]} 18.
Rxb7 {[%clk 0:01:51.9]} 18... Rfe8 {[%clk 0:01:49.9]} 19. Rab1 {[%clk 0:01:34]}
19... d5 {[%clk 0:01:26.7]} 20. exd5 {[%clk 0:01:32.6]} 20... Rad8 {[%clk
0:01:27.2]} 21. d6 {[%clk 0:01:28.6]} 21... Bxd6 {[%clk 0:01:24.9]} 22. Nxd6
{[%clk 0:01:27.3]} 22... Rxd6 {[%clk 0:01:24.9]} 23. Rb8 {[%clk 0:01:26.6]}
23... Rdd8 {[%clk 0:01:19.2]} 24. Qa8 {[%clk 0:01:26.2]} 24... Qa5 {[%clk
0:01:07.8]} 25. Rxd8 {[%clk 0:01:22.5]} 25... Qxd8 {[%clk 0:00:58.4]} 26. Qxa7
{[%clk 0:01:20.7]} 26... Ng4+ {[%clk 0:00:53.4]} 27. Kf3 {[%clk 0:01:09.3]}
27... h5 {[%clk 0:00:45]} 0-1

[Event "Late-Titled-Tuesday-Blitz-February-27-2024"]
[Site "Chess.com"]
[Date "2024.02.27"]
[Round "5"]
[White "ahkashefi2800"]
[Black "michaelk123"]
[Result "1-0"]
[WhiteElo "2628"]
[BlackElo "2486"]
[TimeControl "180+1"]
[EndTime "14:55:24 PST"]
[Termination "ahkashefi2800 won on time"]

1. d4 {[%clk 0:02:58.3]} 1... Nf6 {[%clk 0:02:59.6]} 2. Nf3 {[%clk 0:02:55.3]}
2... g6 {[%clk 0:02:55.7]} 3. g3 {[%clk 0:02:52.5]} 3... Bg7 {[%clk 0:02:54.3]}
4. Bg2 {[%clk 0:02:51.2]} 4... d5 {[%clk 0:02:53.8]} 5. b3 {[%clk 0:02:49.9]}
5... O-O {[%clk 0:02:52.9]} 6. O-O {[%clk 0:02:49.9]} 6... a5 {[%clk 0:02:52]}
7. Bb2 {[%clk 0:02:50.4]} 7... c6 {[%clk 0:02:45.6]} 8. Nbd2 {[%clk 0:02:48.3]}
8... a4 {[%clk 0:02:40.3]} 9. c4 {[%clk 0:02:48.3]} 9... Bf5 {[%clk 0:02:33.2]}
10. e3 {[%clk 0:02:46.3]} 10... Ne4 {[%clk 0:02:18.1]} 11. Nxe4 {[%clk
0:02:46.1]} 11... Bxe4 {[%clk 0:02:16.9]} 12. Bc3 {[%clk 0:02:41]} 12... e6
{[%clk 0:02:10.7]} 13. Re1 {[%clk 0:02:32.9]} 13... Nd7 {[%clk 0:02:09.5]} 14.
Qd2 {[%clk 0:02:29.4]} 14... c5 {[%clk 0:01:54.6]} 15. cxd5 {[%clk 0:02:25.8]}
15... exd5 {[%clk 0:01:52]} 16. dxc5 {[%clk 0:02:23.8]} 16... axb3 {[%clk
0:01:10.1]} 17. axb3 {[%clk 0:02:23.7]} 17... Bxc3 {[%clk 0:01:09.1]} 18. Qxc3
{[%clk 0:02:23.5]} 18... Qc7 {[%clk 0:01:08.5]} 19. b4 {[%clk 0:02:22.7]} 19...
Rfd8 {[%clk 0:00:53.1]} 20. Nd4 {[%clk 0:02:22.1]} 20... Ne5 {[%clk 0:00:50.8]}
21. Nb5 {[%clk 0:02:07.9]} 21... Qe7 {[%clk 0:00:50.6]} 22. Nd6 {[%clk
0:02:05.9]} 22... Qf6 {[%clk 0:00:47.9]} 23. Qd4 {[%clk 0:01:18.9]} 23... Rxa1
{[%clk 0:00:27.4]} 24. Rxa1 {[%clk 0:01:14.2]} 24... Rxd6 {[%clk 0:00:22.8]} 25.
Bxe4 {[%clk 0:01:08.5]} 25... dxe4 {[%clk 0:00:20.6]} 26. Ra8+ {[%clk
0:00:59.2]} 26... Kg7 {[%clk 0:00:16]} 27. Qxd6 {[%clk 0:00:59.1]} 27... Nf3+
{[%clk 0:00:13.8]} 28. Kg2 {[%clk 0:00:57.9]} 28... Qf5 {[%clk 0:00:04.5]} 29.
Qf8+ {[%clk 0:00:56.8]} 29... Kf6 {[%clk 0:00:04.8]} 30. Qd8+ {[%clk 0:00:57.2]}
1-0

[Event "Late-Titled-Tuesday-Blitz-February-27-2024"]
[Site "Chess.com"]
[Date "2024.02.27"]
[Round "5"]
[White "AcostaPablo"]
[Black "js20000"]
[Result "0-1"]
[WhiteElo "2628"]
[BlackElo "2835"]
[TimeControl "180+1"]
[EndTime "14:55:25 PST"]
[Termination "js20000 won on time"]

1. d4 {[%clk 0:03:00.9]} 1... e6 {[%clk 0:03:00.9]} 2. c4 {[%clk 0:03:00.7]}
2... b6 {[%clk 0:02:58.8]} 3. Nc3 {[%clk 0:03:00.3]} 3... Bb4 {[%clk 0:02:57.7]}
4. e3 {[%clk 0:02:57.9]} 4... Bb7 {[%clk 0:02:56.8]} 5. Bd2 {[%clk 0:02:56.3]}
5... f5 {[%clk 0:02:55.7]} 6. Qb3 {[%clk 0:02:51.8]} 6... a5 {[%clk 0:02:54]} 7.
a3 {[%clk 0:02:51.6]} 7... Be7 {[%clk 0:02:50.7]} 8. Nf3 {[%clk 0:02:43.5]} 8...
Nf6 {[%clk 0:02:47.2]} 9. Bd3 {[%clk 0:02:41.2]} 9... h6 {[%clk 0:02:20.4]} 10.
Ne5 {[%clk 0:02:23.4]} 10... O-O {[%clk 0:02:13.2]} 11. Ng6 {[%clk 0:02:14.9]}
11... Re8 {[%clk 0:02:11.7]} 12. c5 {[%clk 0:02:12.6]} 12... Kh7 {[%clk
0:01:55.4]} 13. Nxe7 {[%clk 0:02:08.5]} 13... Qxe7 {[%clk 0:01:56.3]} 14. cxb6
{[%clk 0:02:04.9]} 14... cxb6 {[%clk 0:01:55.6]} 15. Qxb6 {[%clk 0:02:00.2]}
15... Ba6 {[%clk 0:01:55.6]} 16. Bxa6 {[%clk 0:01:52.5]} 16... Rxa6 {[%clk
0:01:56.5]} 17. Qb3 {[%clk 0:01:51]} 17... Nc6 {[%clk 0:01:55.5]} 18. O-O {[%clk
0:01:49.1]} 18... Rb8 {[%clk 0:01:53.6]} 19. Qc2 {[%clk 0:01:48.7]} 19... Rab6
{[%clk 0:01:53.9]} 20. Rab1 {[%clk 0:01:46.1]} 20... Rb3 {[%clk 0:01:50.7]} 21.
f3 {[%clk 0:01:38.4]} 21... Kg8 {[%clk 0:01:47.6]} 22. Na4 {[%clk 0:01:35.9]}
22... Nd5 {[%clk 0:01:37.5]} 23. Rfe1 {[%clk 0:01:28.1]} 23... f4 {[%clk
0:01:34]} 24. exf4 {[%clk 0:01:10.2]} 24... Nxd4 {[%clk 0:01:30.3]} 25. Qe4
{[%clk 0:01:08.6]} 25... Nf5 {[%clk 0:01:15.3]} 26. g4 {[%clk 0:00:48]} 26...
Nh4 {[%clk 0:01:14.6]} 27. Nc3 {[%clk 0:00:27.1]} 27... Qc5+ {[%clk 0:01:03.1]}
28. Be3 {[%clk 0:00:15.5]} 28... Nxe3 {[%clk 0:00:59]} 29. Rxe3 {[%clk
0:00:13.9]} 29... Rxc3 {[%clk 0:00:56.2]} 30. Re1 {[%clk 0:00:01.3]} 30... Rxb2
{[%clk 0:00:51.7]} 0-1

[Event "Late-Titled-Tuesday-Blitz-February-27-2024"]
[Site "Chess.com"]
[Date "2024.02.27"]
[Round "5"]
[White "Cristi_Coca"]
[Black "cristianserban1"]
[Result "0-1"]
[WhiteElo "2373"]
[BlackElo "2497"]
[TimeControl "180+1"]
[EndTime "14:55:27 PST"]
[Termination "cristianserban1 won by resignation"]

1. e4 {[%clk 0:02:59.3]} 1... Nc6 {[%clk 0:02:35]} 2. d4 {[%clk 0:02:54.3]} 2...
d5 {[%clk 0:02:32.6]} 3. e5 {[%clk 0:02:49.4]} 3... Bf5 {[%clk 0:02:32.2]} 4. c3
{[%clk 0:02:42.1]} 4... a5 {[%clk 0:02:28.5]} 5. Bb5 {[%clk 0:02:40.3]} 5... e6
{[%clk 0:02:28.1]} 6. h4 {[%clk 0:02:17.3]} 6... h6 {[%clk 0:02:24]} 7. g4
{[%clk 0:02:15.2]} 7... Be4 {[%clk 0:02:23.6]} 8. f3 {[%clk 0:02:14.9]} 8... Bg6
{[%clk 0:02:15.4]} 9. h5 {[%clk 0:02:12.5]} 9... Bh7 {[%clk 0:02:15.7]} 10. Be3
{[%clk 0:02:08.4]} 10... Ne7 {[%clk 0:01:59.2]} 11. Nd2 {[%clk 0:02:05.6]} 11...
Nc8 {[%clk 0:01:56]} 12. Ne2 {[%clk 0:01:58.5]} 12... Na7 {[%clk 0:01:55.9]} 13.
a4 {[%clk 0:01:51.3]} 13... Be7 {[%clk 0:01:53.1]} 14. Ng3 {[%clk 0:01:41.9]}
14... Qd7 {[%clk 0:01:45.9]} 15. Be2 {[%clk 0:01:34.3]} 15... f6 {[%clk
0:01:32.7]} 16. f4 {[%clk 0:01:27.3]} 16... fxe5 {[%clk 0:01:28.3]} 17. dxe5
{[%clk 0:01:25.2]} 17... b6 {[%clk 0:01:19.2]} 18. Nf3 {[%clk 0:01:22.9]} 18...
Bc5 {[%clk 0:01:16.2]} 19. Qd2 {[%clk 0:01:15.2]} 19... O-O-O {[%clk 0:01:13.3]}
20. Bxc5 {[%clk 0:00:49.1]} 20... bxc5 {[%clk 0:01:12.9]} 21. Bb5 {[%clk
0:00:49.7]} 21... Qf7 {[%clk 0:01:05.6]} 22. Qe3 {[%clk 0:00:39.7]} 22... Rhf8
{[%clk 0:00:55.8]} 23. Qxc5 {[%clk 0:00:14.4]} 23... Qxf4 {[%clk 0:00:55.7]} 24.
Bxc6 {[%clk 0:00:13.3]} 24... Qxg3+ {[%clk 0:00:54.9]} 25. Kd2 {[%clk
0:00:11.9]} 25... Qg2+ {[%clk 0:00:51.2]} 26. Ke1 {[%clk 0:00:09.7]} 26... Qxh1+
{[%clk 0:00:45.3]} 27. Ng1 {[%clk 0:00:08.9]} 27... Nxc6 {[%clk 0:00:43.3]} 28.
Qxc6 {[%clk 0:00:08.5]} 28... Qxg1+ {[%clk 0:00:42.9]} 0-1

[Event "Late-Titled-Tuesday-Blitz-February-27-2024"]
[Site "Chess.com"]
[Date "2024.02.27"]
[Round "5"]
[White "mishanick"]
[Black "OPQRC"]
[Result "1-0"]
[WhiteElo "3055"]
[BlackElo "2524"]
[TimeControl "180+1"]
[EndTime "14:55:28 PST"]
[Termination "mishanick won by resignation"]

1. d4 {[%clk 0:03:00.9]} 1... Nf6 {[%clk 0:01:42.8]} 2. Bg5 {[%clk 0:02:58.4]}
2... c5 {[%clk 0:01:41.6]} 3. d5 {[%clk 0:02:58.2]} 3... g6 {[%clk 0:01:38.3]}
4. Nc3 {[%clk 0:02:55.7]} 4... Bg7 {[%clk 0:01:38.5]} 5. e4 {[%clk 0:02:56.1]}
5... d6 {[%clk 0:01:39.1]} 6. Bd3 {[%clk 0:02:56.1]} 6... O-O {[%clk 0:01:39.6]}
7. Nge2 {[%clk 0:02:55.9]} 7... h6 {[%clk 0:01:33.4]} 8. Bc1 {[%clk 0:02:54.2]}
8... e6 {[%clk 0:01:31.9]} 9. O-O {[%clk 0:02:53.8]} 9... exd5 {[%clk
0:01:31.7]} 10. exd5 {[%clk 0:02:54.2]} 10... Nbd7 {[%clk 0:01:31.1]} 11. Bf4
{[%clk 0:02:54.1]} 11... Ne5 {[%clk 0:01:30]} 12. Ng3 {[%clk 0:02:47.6]} 12...
Nfg4 {[%clk 0:01:22.6]} 13. Be2 {[%clk 0:02:46.5]} 13... Qh4 {[%clk 0:01:01.2]}
14. h3 {[%clk 0:02:45.7]} 14... g5 {[%clk 0:00:56.9]} 15. Bxe5 {[%clk
0:01:59.3]} 15... Nxe5 {[%clk 0:00:57.8]} 16. Nge4 {[%clk 0:01:56.5]} 16... f5
{[%clk 0:00:57.1]} 17. Nxd6 {[%clk 0:01:56.6]} 17... g4 {[%clk 0:00:54.2]} 18.
Nxc8 {[%clk 0:01:54.2]} 18... Raxc8 {[%clk 0:00:51.9]} 19. d6 {[%clk 0:01:51.8]}
19... gxh3 {[%clk 0:00:35.9]} 20. Qd5+ {[%clk 0:01:52.3]} 20... Kh8 {[%clk
0:00:33.6]} 21. g3 {[%clk 0:01:52.9]} 21... Qg5 {[%clk 0:00:32.7]} 22. Kh1
{[%clk 0:01:45.6]} 22... f4 {[%clk 0:00:32.5]} 23. Ne4 {[%clk 0:01:46]} 23...
Qg6 {[%clk 0:00:28.8]} 24. Rg1 {[%clk 0:01:40.6]} 24... Ng4 {[%clk 0:00:26.1]}
25. Bxg4 {[%clk 0:01:02.8]} 25... Qxg4 {[%clk 0:00:27]} 26. Rae1 {[%clk
0:01:01.3]} 26... h2 {[%clk 0:00:19.3]} 27. Rg2 {[%clk 0:00:59.7]} 27... Qf3
{[%clk 0:00:18.6]} 28. gxf4 {[%clk 0:00:57.6]} 28... Rg8 {[%clk 0:00:14.3]} 29.
Re3 {[%clk 0:00:55.9]} 29... Qxf4 {[%clk 0:00:11.9]} 30. Reg3 {[%clk 0:00:53]}
30... Rce8 {[%clk 0:00:10.3]} 31. d7 {[%clk 0:00:50.8]} 31... Rxe4 {[%clk
0:00:09]} 32. Qxg8+ {[%clk 0:00:50.4]} 32... Kxg8 {[%clk 0:00:06.5]} 33. Rxg7+
{[%clk 0:00:51.3]} 33... Kf8 {[%clk 0:00:06.9]} 34. d8=Q+ {[%clk 0:00:52.2]}
34... Re8 {[%clk 0:00:06.5]} 35. Rg8+ {[%clk 0:00:52.7]} 1-0